bitfinex/quotes_ETHUSD_20241023
["timestamp","ask_amount","ask_price","bid_price","bid_amount"]
[1729701200436,3.97808,2513.8,2513.2,3.97883]
[1729701200600,3.97797,2513.9,2513.3,3.97879]
[1729701200805,3.97804,2513.8,2513.3,3.97879]
[1729701201305,3.97781,2514.0,2513.4,3.97862]
[1729701201463,3.97781,2514.0,2513.5,3.97848]
[1729701201670,3.97743,2514.2,2513.6,3.97834]
[1729701201866,5.15889,2514.4,2513.8,3.97802]
[1729701202106,3.97674,2514.7,2514.1,3.97756]
[1729701202274,3.97638,2514.9,2513.9,1.1759]
[1729701202607,5.18814,2515.1,2513.9,1.1759]
[1729701202608,3.97719,2514.4,2513.9,1.1759]
[1729701202783,3.97688,2514.6,2514.0,3.97758]
[1729701202968,3.97686,2514.6,2513.9,1.1759]
[1729701203168,1.2121,2515.1,2513.9,1.1759]
[1729701203169,3.97706,2514.5,2513.9,1.1759]
[1729701203395,3.97706,2514.5,2513.5,9.2654844]
[1729701203396,3.97771,2514.1,2513.6,1.211]
[1729701203600,3.97775,2514.0,2513.6,1.211]
[1729701203799,5.16105,2514.8,2513.7,3.97819]
[1729701203800,3.97732,2514.3,2513.7,3.97819]
[1729701203966,3.97786,2514.0,2513.6,1.211]
[1729701204173,3.97786,2514.0,2513.3,3.97874]
[1729701204174,3.97797,2513.9,2513.3,5.17044]
[1729701204509,3.97754,2514.2,2513.3,2.23744344]
[1729701204697,3.97756,2514.1,2513.5,3.97837]
[1729701205216,3.97722,2514.4,2513.6,4.05784456]
[1729701205377,3.97722,2514.4,2513.7,3.97811]
[1729701205576,3.97722,2514.4,2513.8,3.97803]
[1729701205776,3.97721,2514.4,2513.8,3.97795]
[1729701206023,3.97736,2514.3,2513.7,3.97819]
[1729701206375,3.97721,2514.4,2513.8,3.97795]
[1729701206574,8.16117,2514.8,2514.1,3.97746]
[1729701206876,3.0,2514.9,2514.3,3.97714]
[1729701207091,3.97638,2514.9,2514.3,3.97714]
[1729701207523,3.97617,2515.0,2514.0,1.1809]
[1729701207679,3.97637,2514.9,2514.3,3.97723]
[1729701207880,3.97608,2515.1,2514.4,3.97708]
[1729701208116,7.95221,2515.1,2514.4,3.97708]
[1729701208320,3.97579,2515.3,2514.6,3.97675]
[1729701208616,1.1597,2515.4,2514.4,3.97708]
[1729701208617,3.97631,2514.9,2514.4,3.97708]
[1729701208821,3.97577,2515.3,2514.6,3.97677]
[1729701208984,3.97577,2515.3,2514.7,3.97654]
[1729701209179,1.1597,2515.4,2514.8,3.97638]
[1729701209406,3.97574,2515.3,2514.7,3.97654]
[1729701209685,3.97591,2515.2,2514.6,1.1165]
[1729701210012,3.97598,2515.1,2514.6,1.1165]
[1729701210302,3.97608,2515.1,2514.6,1.1165]
[1729701210503,3.97576,2515.3,2514.6,1.1165]
[1729701210718,3.97591,2515.2,2514.6,1.1165]
[1729701210904,3.97519,2515.6,2514.8,3.97644]
[1729701211091,1.1851,2516.1,2514.7,5.2869944]
[1729701211293,3.97551,2515.4,2514.8,0.64034944]
[1729701211615,3.97551,2515.4,2514.8,0.0795208]
[1729701211815,3.97551,2515.4,2514.8,4.0559508]
[1729701212115,3.97551,2515.4,2514.7,3.9765]
[1729701212324,1.1851,2516.1,2514.6,1.1165]
[1729701212325,1.2246,2515.5,2514.6,1.1165]
[1729701212509,3.97614,2515.0,2514.6,1.1165]
[1729701212825,3.97583,2515.2,2514.6,5.09324]
[1729701213177,3.97583,2515.2,2514.6,9.06992]
[1729701213382,3.97484,2515.9,2514.9,3.9763]
[1729701213582,3.9744,2516.2,2515.4,3.9754]
[1729701213823,3.97457,2516.0,2515.4,3.9754]
[1729701213978,3.9744,2516.1,2515.6,1.1198]
[1729701214180,3.97432,2516.2,2515.6,5.09498]
[1729701214421,3.97432,2516.2,2515.6,1.1198]
[1729701214720,3.97386,2516.5,2515.7,0.07949728]
[1729701214924,3.97423,2516.3,2515.6,1.1198]
[1729701215225,3.97423,2516.3,2515.6,5.09499]
[1729701215226,3.97421,2516.3,2515.6,5.09499]
[1729701215473,3.97388,2516.5,2515.7,3.97501]
[1729701215585,3.97388,2516.5,2515.9,3.97463]
[1729701215783,3.97381,2516.5,2515.7,3.97503]
[1729701215999,3.97381,2516.5,2515.6,5.09488]
[1729701216324,3.9742,2516.3,2515.7,3.97501]
[1729701216487,3.9742,2516.3,2515.6,5.09488]
[1729701216825,3.9742,2516.3,2515.7,3.97503]
[1729701217316,3.9742,2516.3,2515.6,5.09488]
[1729701217627,3.974,2516.4,2515.7,3.97494]
[1729701217842,3.97327,2516.9,2516.1,3.97429]
[1729701217987,0.9916,2517.2,2516.3,1.0717]
[1729701218321,3.97302,2517.0,2516.3,1.0717]
[1729701218525,3.97314,2516.9,2516.3,1.0717]
[1729701218819,3.97289,2517.1,2516.4,4.05339029]
[1729701218982,3.97274,2517.2,2516.5,3.97373]
[1729701219205,6.24869947,2517.8,2516.9,3.97313]
[1729701219382,3.97211,2517.6,2517.1,1.0337]
[1729701219701,3.97164,2517.9,2517.2,4.05202132]
[1729701220010,3.97164,2517.9,2517.2,4.05201255]
[1729701220323,3.97164,2517.9,2517.2,0.07944255]
[1729701220528,3.97197,2517.7,2517.1,1.0337]
[1729701220824,3.97212,2517.6,2517.1,1.0337]
[1729701221032,7.94367,2517.8,2517.1,1.0337]
[1729701221188,3.9718,2517.8,2517.1,1.0337]
[1729701221521,3.97197,2517.7,2517.1,1.0337]
[1729701221887,3.9718,2517.8,2517.1,1.0337]
[1729701222086,3.9718,2517.8,2517.1,5.00643]
[1729701222285,3.97093,2518.3,2517.1,1.0337]
[1729701222515,3.97224,2517.5,2517.1,1.0337]
[1729701223687,3.97237,2517.4,2517.1,1.0337]
[1729701223913,3.97224,2517.5,2517.1,1.0337]
[1729701225184,1.0422,2517.8,2517.1,1.0337]
[1729701225425,3.97301,2517.0,2516.5,1.0506]
[1729701225594,3.97356,2516.7,2516.5,1.0506]
[1729701225916,3.97321,2516.9,2516.5,1.0506]
[1729701226080,3.97292,2517.1,2516.6,0.07947401]
[1729701226284,3.97292,2517.1,2516.5,1.0506]
[1729701226706,7.94523,2517.3,2516.5,5.02436]
[1729701226916,3.0,2517.5,2516.7,3.97336]
[1729701227097,3.97251,2517.3,2516.7,3.97336]
[1729701227310,3.97291,2517.1,2516.5,1.0506]
[1729701227625,3.97262,2517.3,2516.6,0.07946751]
[1729701227830,3.97262,2517.3,2516.6,4.05298751]
[1729701228124,3.97262,2517.3,2516.6,3.97352]
[1729701228326,6.97228,2517.5,2516.7,0.0794606]
[1729701228510,3.97227,2517.5,2516.9,1.0379]
[1729701228720,7.94394,2517.7,2517.0,4.05241365]
[1729701229023,3.97197,2517.7,2516.9,5.01098]
[1729701229226,3.97197,2517.7,2516.9,1.0379]
[1729701229227,3.97204,2517.6,2516.9,1.0379]
[1729701229529,3.97197,2517.7,2517.0,3.97297]
[1729701230024,3.97208,2517.6,2516.9,5.01102]
[1729701230326,3.97197,2517.7,2516.9,5.01095]
[1729701230534,7.94397,2517.7,2517.0,3.97289]
[1729701230684,7.94397,2517.7,2516.9,1.0379]
[1729701230685,3.0,2517.7,2516.9,1.0379]
[1729701230887,3.97163,2517.9,2517.3,1.0379]
[1729701231528,3.97141,2518.0,2517.4,0.07943986]
[1729701231738,3.97123,2518.2,2517.4,4.05166986]
[1729701231935,3.97139,2518.1,2517.3,5.511449]
[1729701232224,3.97156,2517.9,2517.3,1.0379]
[1729701232431,3.97137,2518.1,2517.3,1.0379]
[1729701232615,3.97137,2518.1,2517.4,3.97233]
[1729701233005,3.9715,2518.0,2517.3,5.01039]
[1729701233199,3.97165,2517.9,2517.3,1.0379]
[1729701233405,3.97093,2518.3,2517.3,1.0379]
[1729701233406,3.97188,2517.7,2517.3,1.0379]
[1729701233806,3.97213,2517.6,2517.3,1.0379]
[1729701234024,3.97187,2517.7,2517.6,1.002]
[1729701234538,3.0,2518.0,2517.6,1.002]
[1729701234744,3.0,2518.4,2517.6,1.002]
[1729701234745,3.97093,2518.3,2517.6,1.002]
[1729701235034,3.97125,2518.1,2517.6,1.002]
[1729701235708,3.97094,2518.3,2517.7,1.0439]
[1729701236028,3.97074,2518.5,2517.7,5.01568]
[1729701236236,3.9708,2518.4,2517.7,5.01568]
[1729701236531,3.97054,2518.6,2517.9,3.97155]
[1729701236706,3.97054,2518.6,2517.7,5.01568]
[1729701236903,3.97054,2518.6,2517.9,3.97151]
[1729701237302,3.97074,2518.5,2518.1,1.0439]
[1729701237612,3.97078,2518.4,2518.1,1.0439]
[1729701237818,3.97031,2518.7,2518.1,1.0439]
[1729701237991,3.97136,2518.1,2517.7,1.0439]
[1729701238200,3.97168,2517.9,2517.7,1.0439]
[1729701238431,3.97172,2517.8,2517.7,1.0439]
[1729701238928,3.97145,2518.0,2517.7,1.0439]
[1729701240104,3.97126,2518.1,2517.7,1.0439]
[1729701240328,3.97132,2518.1,2517.7,1.0439]
[1729701240517,3.0,2518.2,2517.7,1.24849]
[1729701240718,3.97102,2518.3,2517.7,1.24849]
[1729701241028,3.97101,2518.3,2517.7,1.24849]
[1729701241232,3.97101,2518.3,2517.7,5.22036]
[1729701241534,3.97101,2518.3,2517.7,1.0439]
[1729701241535,3.97112,2518.2,2517.7,1.0439]
[1729701242136,3.97073,2518.5,2517.9,8.70111057]
[1729701242309,3.97079,2518.4,2518.1,0.9874]
[1729701242721,3.9703,2518.7,2518.1,0.9874]
[1729701242899,3.9703,2518.7,2518.1,1.95622906]
[1729701243098,3.96998,2518.9,2518.2,0.07941457]
[1729701243410,3.96998,2518.9,2518.2,8.77999514]
[1729701243601,0.1249866,2519.0,2518.3,4.05020552]
[1729701243602,4.0948366,2519.0,2518.3,4.05020552]
[1729701243805,0.1249866,2519.0,2518.4,5.01809]
[1729701244000,0.1249866,2519.0,2518.6,3.97038]
[1729701244233,0.1249866,2519.0,2518.8,8.69968057]
[1729701244396,0.1249866,2519.0,2518.9,5.10096901]
[1729701244802,0.1249866,2519.0,2518.9,8.66096751]
[1729701244997,3.96762,2520.4,2519.5,1.0516]
[1729701245197,3.9687,2519.8,2519.5,1.0516]
[1729701245749,3.96834,2520.0,2519.5,1.0516]
[1729701245750,3.96833,2520.0,2519.5,1.0516]
[1729701245905,3.9685,2519.9,2519.5,1.0516]
[1729701246105,3.96833,2520.0,2519.5,1.0516]
[1729701246430,3.0,2520.4,2519.5,1.553693]
[1729701246629,3.96836,2520.0,2519.5,1.553693]
[1729701246832,3.96803,2520.2,2519.5,5.522613]
[1729701247035,3.96803,2520.2,2519.5,5.522723]
[1729701247219,3.96771,2520.4,2519.5,5.522723]
[1729701247403,3.96771,2520.4,2519.7,8.69817057]
[1729701247744,4.46277891,2520.5,2519.8,1.0138]
[1729701248038,3.96811,2520.1,2519.8,1.0138]
[1729701248242,3.96748,2520.5,2520.0,4.72957057]
[1729701248424,3.96731,2520.6,2520.1,0.47295706]
[1729701248628,1.0173,2521.2,2520.2,0.07935586]
[1729701248832,1.0173,2521.2,2520.3,1.022]
[1729701248833,3.96715,2520.7,2520.3,1.022]
[1729701249027,3.96731,2520.6,2520.3,1.022]
[1729701249349,3.96778,2520.3,2519.8,1.022]
[1729701249539,3.96796,2520.2,2519.8,1.022]
[1729701250355,3.96774,2520.4,2519.8,1.521087]
[1729701250511,3.96778,2520.3,2519.8,1.022]
[1729701250912,3.96822,2520.1,2519.8,1.022]
[1729701251115,3.96826,2520.0,2519.8,1.022]
[1729701251350,3.96787,2520.3,2519.8,1.022]
[1729701251724,3.0,2520.8,2519.8,1.022]
[1729701252048,3.96819,2520.1,2519.8,1.022]
[1729701252257,3.96841,2519.9,2519.8,1.022]
[1729701252755,4.9705,2520.3,2519.2,1.0773]
[1729701252955,7.72957057,2520.1,2518.6,1.023]
[1729701253115,3.96904,2519.5,2518.9,1.023]
[1729701253315,3.96934,2519.4,2518.9,1.023]
[1729701253649,7.93795,2519.6,2518.9,1.023]
[1729701253953,3.96825,2520.0,2518.9,1.023]
[1729701253954,3.96936,2519.3,2518.9,1.023]
[1729701254153,3.96951,2519.2,2518.9,1.023]
[1729701254356,3.0,2520.1,2518.9,1.023]
[1729701254357,3.96924,2519.4,2519.0,0.65464525]
[1729701254523,3.96898,2519.6,2519.0,0.57525706]
[1729701255145,3.96908,2519.5,2519.0,0.57525706]
[1729701255331,3.96901,2519.6,2519.0,0.57525706]
[1729701255653,3.96858,2519.8,2519.2,5.05541]
[1729701255859,3.96858,2519.8,2519.4,4.72957057]
[1729701256030,3.96834,2520.0,2519.5,0.07937153]
[1729701256353,3.96773,2520.4,2519.6,1.16536893]
[1729701256567,3.96793,2520.3,2519.7,4.72957057]
[1729701256716,1.0141,2521.0,2519.9,1.086]
[1729701257041,3.9679,2520.3,2519.9,2.07233498]
[1729701257361,3.96822,2520.1,2519.9,2.07233498]
[1729701257563,3.96788,2520.3,2519.9,2.07233498]
[1729701257735,3.96756,2520.5,2520.0,0.0793596]
[1729701258265,3.96726,2520.7,2520.1,3.96805]
[1729701258464,3.96694,2520.9,2520.4,3.9676]
[1729701258621,3.96694,2520.9,2520.3,5.74627057]
[1729701258622,3.96701,2520.8,2520.3,5.74627057]
[1729701259329,3.96694,2520.9,2520.3,9.71400057]
[1729701260228,5.1361266,2521.6,2520.3,1.0167]
[1729701260432,3.9674,2520.6,2520.3,1.0167]
[1729701260637,3.96721,2520.7,2520.3,1.0167]
[1729701260930,3.96721,2520.7,2520.3,1.815176]
[1729701261455,3.96699,2520.8,2520.3,1.815176]
[1729701261661,3.96686,2520.9,2520.3,1.815176]
[1729701262016,7.93382,2520.9,2520.4,0.07933739]
[1729701262521,4.1703866,2521.6,2520.5,3.96746]
[1729701262743,3.96645,2521.2,2520.7,1.0106]
[1729701263523,0.1249866,2521.6,2520.7,1.0106]
[1729701263524,3.96681,2521.0,2520.7,1.0106]
[1729701264064,3.96691,2520.9,2520.7,1.0106]
[1729701264264,3.96681,2521.0,2520.7,1.0106]
[1729701264478,3.96693,2520.9,2520.7,1.0106]
[1729701265396,3.96667,2521.0,2520.4,1.0938]
[1729701265683,3.96725,2520.7,2520.4,1.0938]
[1729701265843,3.9674,2520.6,2520.4,1.0938]
[1729701266875,3.9671,2520.8,2520.4,1.0938]
[1729701267176,3.96681,2521.0,2520.4,1.0938]
[1729701267481,3.96589,2521.5,2520.4,5.0613]
[1729701267797,3.96661,2521.1,2520.5,4.99852857]
[1729701267938,3.96631,2521.3,2520.5,1.03106857]
[1729701268144,3.96637,2521.2,2520.7,1.0263]
[1729701268484,3.96637,2521.2,2520.7,1.62876586]
[1729701268682,3.96631,2521.3,2520.7,5.59588586]
[1729701268867,3.96631,2521.3,2520.7,1.62876586]
[1729701269178,3.96668,2521.0,2520.7,1.62876586]
[1729701269377,4.0907466,2521.6,2520.7,1.0263]
[1729701269378,1.0132,2521.4,2520.7,1.0263]
[1729701269588,3.96682,2521.0,2520.7,1.0263]
[1729701269785,7.93299,2521.2,2520.7,1.0263]
[1729701270077,3.0,2521.5,2520.7,1.0263]
[1729701270078,3.96653,2521.1,2520.7,1.0263]
[1729701270276,3.96632,2521.3,2520.7,1.0263]
[1729701270481,3.96632,2521.3,2520.7,4.99344]
[1729701270642,3.96632,2521.3,2520.8,0.499344]
[1729701271038,3.96637,2521.2,2520.8,0.499344]
[1729701271441,7.9326,2521.3,2520.8,0.499344]
[1729701271645,3.9665,2521.2,2520.8,0.499344]
[1729701271847,3.9665,2521.2,2520.7,1.0263]
[1729701273090,3.96613,2521.4,2520.8,1.0872]
[1729701273247,3.96637,2521.2,2520.8,1.0872]
[1729701273449,3.96663,2521.1,2520.8,1.0872]
[1729701273791,3.9662,2521.3,2520.0,1.0872]
[1729701273953,1.0203,2521.4,2520.0,1.0872]
[1729701273954,3.96711,2520.8,2520.2,3.9679]
[1729701274150,3.96711,2520.8,2520.3,1.0872]
[1729701274387,3.0,2521.0,2520.3,1.0872]
[1729701274590,3.96802,2520.2,2519.7,1.0872]
[1729701274798,3.96805,2520.2,2519.7,1.0872]
[1729701275096,3.96833,2520.0,2519.8,0.505606]
[1729701275386,3.96735,2520.6,2519.7,1.0872]
[1729701275387,3.96856,2519.8,2519.7,1.0872]
[1729701275639,3.96846,2519.9,2519.7,1.0872]
[1729701275746,3.0,2520.6,2519.7,1.0872]
[1729701275747,3.96778,2520.3,2519.7,1.0872]
[1729701275951,3.96746,2520.5,2519.7,1.0872]
[1729701276146,3.96821,2520.1,2519.7,1.0872]
[1729701276383,3.96848,2519.9,2519.7,1.0872]
[1729701276590,3.96826,2520.0,2519.7,1.0872]
[1729701277452,7.93667,2520.0,2519.7,1.0872]
[1729701277651,3.96826,2520.0,2519.7,1.0872]
[1729701277851,3.96793,2520.2,2519.3,1.0577]
[1729701278050,1.0075,2520.3,2519.3,1.0577]
[1729701278051,7.93828,2519.5,2519.3,1.0577]
[1729701278499,3.96919,2519.4,2519.3,1.0577]
[1729701278652,3.96912,2519.5,2519.3,1.0577]
[1729701278855,3.96793,2520.2,2519.3,1.0577]
[1729701279060,3.96848,2519.9,2519.3,5.02697]
[1729701279399,3.96817,2520.1,2519.3,5.02697]
[1729701279400,3.96888,2519.6,2519.4,0.502697]
[1729701279575,3.96888,2519.6,2519.4,0.07937598]
[1729701279918,4.9753,2520.3,2519.3,1.0577]
[1729701279919,3.0,2520.2,2519.3,1.0577]
[1729701280119,3.96895,2519.6,2519.3,1.0577]
[1729701280502,3.96905,2519.5,2519.3,1.0577]
[1729701280984,3.96885,2519.7,2519.3,1.0577]
[1729701281185,3.96885,2519.7,2519.4,0.0793754]
[1729701281582,3.9689,2519.6,2519.3,1.0577]
[1729701281782,3.9689,2519.6,2519.3,1.560429]
[1729701281984,3.96912,2519.5,2519.3,1.0577]
[1729701282220,3.96919,2519.4,2519.3,1.0577]
[1729701282524,7.93962,2519.1,2518.9,1.0564]
[1729701282677,3.96982,2519.0,2518.9,1.0564]
[1729701283146,3.96982,2519.0,2518.5,1.0564]
[1729701283326,7.93925,2519.2,2518.6,0.502707]
[1729701283616,3.97004,2518.9,2518.6,0.502707]
[1729701283776,3.97004,2518.9,2518.5,1.0564]
[1729701283976,3.96979,2519.1,2518.5,1.0564]
[1729701284188,3.96979,2519.1,2518.6,8.77200295]
[1729701284426,3.96945,2519.3,2518.7,0.07939371]
[1729701284579,3.96945,2519.3,2518.5,1.0564]
[1729701284580,3.97017,2518.8,2518.5,1.0564]
[1729701284774,3.97017,2518.8,2518.5,2.11329045]
[1729701285204,3.97033,2518.7,2518.5,2.11329045]
[1729701285402,9.73703331,2519.6,2518.5,1.0564]
[1729701285403,3.0,2519.4,2518.5,1.0564]
[1729701285584,3.97032,2518.7,2518.5,1.0564]
[1729701285792,7.9407,2518.7,2518.5,1.0564]
[1729701286277,3.97032,2518.7,2518.5,1.0564]
[1729701287503,6.96922,2519.4,2518.5,1.0564]
[1729701287692,3.96989,2519.0,2518.6,0.58211442]
[1729701287893,3.96979,2519.1,2518.5,1.0564]
[1729701288376,3.96982,2519.0,2518.5,1.0564]
[1729701288575,6.96922,2519.4,2518.5,1.0564]
[1729701288779,3.97009,2518.9,2518.5,1.0564]
[1729701289691,3.97007,2518.9,2518.5,1.0564]
[1729701290023,3.96984,2519.0,2518.5,2.03134633]
[1729701290205,3.96979,2519.1,2518.5,6.00195633]
[1729701290729,3.96979,2519.1,2518.6,0.07939705]
[1729701290730,3.96977,2519.1,2518.6,0.07939705]
[1729701290884,3.96987,2519.0,2518.6,0.07939705]
[1729701291084,3.96987,2519.0,2518.5,6.00185633]
[1729701291321,3.96951,2519.2,2518.6,0.60018563]
[1729701291627,3.97011,2518.9,2518.5,2.03134633]
[1729701292219,3.96961,2519.2,2518.5,2.03134633]
[1729701292518,3.96927,2519.4,2518.8,8.69223331]
[1729701292721,3.96882,2519.7,2518.9,0.9964]
[1729701292922,3.96982,2519.0,2518.9,0.9964]
[1729701293105,3.96968,2519.1,2518.9,0.9964]
[1729701294280,3.96946,2519.3,2518.9,0.9964]
[1729701294281,3.96955,2519.2,2518.9,0.9964]
[1729701294491,3.96946,2519.3,2518.9,0.9964]
[1729701294721,7.93891,2519.3,2518.9,1.50097943]
[1729701294925,3.96944,2519.3,2518.9,1.50097943]
[1729701295330,7.93887,2519.3,2518.9,1.50097943]
[1729701296704,3.96976,2519.1,2518.9,1.50097943]
[1729701296893,1.0453,2519.3,2518.6,1.0954]
[1729701297095,3.9703,2518.7,2518.6,1.0954]
[1729701297537,3.96983,2519.0,2518.6,1.0954]
[1729701297689,1.0453,2519.3,2518.6,1.67716233]
[1729701298022,3.97009,2518.9,2518.6,1.67716233]
[1729701298527,3.9702,2518.8,2518.6,1.67716233]
[1729701298734,3.9702,2518.8,2518.6,1.0954]
[1729701299788,1.0453,2519.3,2518.6,1.0954]
[1729701300012,7.93985,2519.0,2518.6,1.0954]
[1729701300216,3.96959,2519.2,2518.6,1.17480271]
[1729701300493,3.96929,2519.4,2518.9,3.96988]
[1729701300713,1.0288,2520.0,2519.1,1.0838]
[1729701300919,3.96895,2519.6,2519.1,5.05346]
[1729701301126,3.96898,2519.6,2519.1,1.0838]
[1729701301326,3.96898,2519.6,2519.2,3.96948]
[1729701301530,3.96898,2519.6,2519.1,1.0838]
[1729701301531,3.96895,2519.6,2519.1,5.05346]
[1729701301693,3.96895,2519.6,2519.1,5.955795]
[1729701301920,3.96908,2519.5,2519.1,1.986135]
[1729701302120,1.0288,2520.0,2519.1,5.955785]
[1729701302121,3.96869,2519.8,2519.1,5.955785]
[1729701302428,3.96797,2520.2,2519.1,1.986135]
[1729701302762,3.96888,2519.6,2519.1,5.955675]
[1729701303057,3.96888,2519.6,2519.2,1.46475883]
[1729701303256,3.96795,2520.2,2519.2,1.46475883]
[1729701303444,3.96795,2520.2,2519.1,1.0838]
[1729701303445,3.96931,2519.4,2519.1,1.0838]
[1729701303650,3.96916,2519.5,2519.1,1.0838]
[1729701303824,3.96898,2519.6,2519.2,0.07938304]
[1729701304024,3.96873,2519.7,2519.3,4.72222331]
[1729701304258,3.96873,2519.7,2519.4,0.87709964]
[1729701304853,3.96868,2519.8,2519.4,0.87709964]
[1729701305154,3.96874,2519.7,2519.2,4.04885806]
[1729701305349,3.96868,2519.8,2519.3,3.96927]
[1729701305695,3.96873,2519.7,2519.3,3.96927]
[1729701306030,3.96859,2519.8,2519.3,3.96927]
[1729701306228,3.96859,2519.8,2519.4,0.07937418]
[1729701306551,3.96859,2519.8,2519.4,0.4842386]
[1729701306725,3.96839,2520.0,2519.5,1.0779]
[1729701306923,3.96836,2520.0,2519.6,0.07937371]
[1729701307322,3.9678,2520.3,2519.8,3.96852]
[1729701307527,3.9678,2520.3,2519.7,3.96862]
[1729701307528,3.96795,2520.2,2519.7,3.96862]
[1729701307758,3.96795,2520.2,2519.8,0.86908433]
[1729701307973,3.9678,2520.3,2519.8,0.86908433]
[1729701307974,3.96779,2520.3,2519.8,0.86908433]
[1729701308125,3.96763,2520.4,2519.9,3.96834]
[1729701308328,1.0738,2520.8,2520.0,1.0588]
[1729701308531,3.96715,2520.7,2520.0,1.0588]
[1729701308761,5.34323928,2521.4,2520.6,3.96728]
[1729701308762,3.96669,2521.0,2520.6,3.96728]
[1729701309072,3.96724,2520.7,2520.5,1.0588]
[1729701309226,7.93453,2520.7,2520.5,1.0588]
[1729701309427,7.93451,2520.7,2520.5,1.0588]
[1729701309634,3.96778,2520.3,2520.2,1.0954]
[1729701309833,3.96763,2520.4,2520.2,1.0954]
[1729701310054,3.96778,2520.3,2520.2,1.0954]
[1729701310260,3.9682,2520.1,2519.9,1.0733]
[1729701310443,3.9682,2520.1,2519.9,1.56753843]
[1729701310650,3.96778,2520.3,2519.9,1.64689835]
[1729701310845,3.96771,2520.4,2519.9,1.64689835]
[1729701311056,7.93613,2520.2,2519.9,1.56753843]
[1729701311338,7.93613,2520.2,2519.5,3.96891]
[1729701311339,3.96816,2520.1,2519.5,0.9931]
[1729701311776,3.9674,2520.6,2519.7,3.96869]
[1729701311777,3.96795,2520.2,2519.7,3.96869]
[1729701312070,3.96795,2520.2,2519.5,0.9931]
[1729701312071,3.9681,2520.1,2519.5,4.96213]
[1729701312272,3.96796,2520.2,2519.5,4.96213]
[1729701312475,3.96828,2520.0,2519.5,0.9931]
[1729701312676,3.96766,2520.4,2519.6,0.49622]
[1729701312975,3.96883,2519.7,2519.5,0.9931]
[1729701313146,7.93767,2519.7,2519.5,0.9931]
[1729701313346,3.96883,2519.7,2519.5,0.9931]
[1729701313581,3.96829,2520.0,2519.5,0.9931]
[1729701313786,3.96787,2520.3,2519.5,4.96207]
[1729701314072,3.968,2520.2,2519.6,4.47293393]
[1729701314372,3.96763,2520.4,2519.7,0.07936101]
[1729701314573,3.96763,2520.4,2519.6,7.93758]
[1729701314574,3.96802,2520.2,2519.6,7.93758]
[1729701314873,3.968,2520.2,2519.6,3.96878]
[1729701315072,3.96786,2520.3,2519.7,4.04800872]
[1729701315400,3.96803,2520.2,2519.8,1.2739012]
[1729701315695,3.96775,2520.4,2519.9,0.07935901]
[1729701315839,3.96803,2520.2,2519.5,4.96201]
[1729701316038,3.96803,2520.2,2519.6,3.96888]
[1729701316742,7.93577,2520.3,2519.9,1.0185]
[1729701316977,3.96802,2520.2,2519.9,1.0185]
[1729701317277,3.96785,2520.3,2519.9,1.0185]
[1729701317278,3.9678,2520.3,2519.9,1.0185]
[1729701317484,3.9678,2520.3,2519.9,1.52515588]
[1729701317638,3.96812,2520.1,2519.9,1.0185]
[1729701318267,3.96804,2520.2,2519.9,1.0185]
[1729701318268,3.96795,2520.2,2519.9,1.0185]
[1729701318475,3.96811,2520.1,2519.9,1.0185]
[1729701318687,3.96792,2520.3,2519.9,1.0185]
[1729701318993,1.0026,2520.8,2519.6,7.93753]
[1729701318994,3.96715,2520.7,2519.6,4.0025]
[1729701319140,3.0,2520.6,2519.6,1.0025]
[1729701319338,3.96872,2519.7,2519.6,1.0025]
[1729701319839,3.96858,2519.8,2519.6,1.0025]
[1729701320338,7.93675,2520.0,2519.6,1.0025]
[1729701320568,3.96842,2519.9,2519.6,1.0025]
[1729701320839,1.067,2520.5,2519.7,0.07937417]
[1729701321008,3.96751,2520.5,2519.9,3.96833]
[1729701321194,3.96751,2520.5,2520.1,1.0239]
[1729701321528,3.96747,2520.5,2520.1,1.0239]
[1729701321829,3.96774,2520.4,2520.1,1.0239]
[1729701322032,3.96748,2520.5,2520.1,1.0239]
[1729701322202,3.9673,2520.7,2520.1,5.49906622]
[1729701322403,3.96732,2520.6,2520.1,1.53105622]
[1729701322618,7.93457,2520.7,2520.1,1.53105622]
[1729701322793,7.93457,2520.7,2520.1,5.49913622]
[1729701323128,3.96748,2520.5,2520.1,1.53105622]
[1729701323289,3.96727,2520.7,2520.1,1.53105622]
[1729701323290,3.96733,2520.6,2520.1,1.53105622]
[1729701323489,4.1004,2521.1,2520.2,0.91874642]
[1729701323490,1.1004,2521.1,2520.2,0.91874642]
[1729701323723,3.96691,2520.9,2520.3,4.04705643]
[1729701324139,3.96691,2520.9,2520.3,0.07934643]
[1729701324344,3.96643,2521.2,2520.6,1.0175]
[1729701324634,3.96643,2521.2,2520.7,0.07933236]
[1729701324799,3.96643,2521.2,2520.7,0.90313824]
[1729701325207,3.96655,2521.1,2520.7,0.90313824]
[1729701325623,3.96643,2521.2,2520.7,4.87021824]
[1729701325925,3.96677,2521.0,2520.7,0.90313824]
[1729701326134,3.96677,2521.0,2520.6,1.0175]
[1729701326135,3.96693,2520.9,2520.6,1.0175]
[1729701326292,3.96677,2521.0,2520.6,1.0175]
[1729701326696,3.96628,2521.3,2520.7,0.07933587]
[1729701326930,3.96639,2521.2,2520.7,3.96706]
[1729701327230,3.96628,2521.3,2520.8,4.54476403]
[1729701327443,3.96601,2521.5,2520.8,4.54476403]
[1729701327444,3.96606,2521.4,2520.9,3.9668]
[1729701327747,3.96601,2521.5,2521.0,1.0709]
[1729701327895,3.96601,2521.5,2521.0,5.03757]
[1729701328096,3.96599,2521.5,2521.1,0.503757]